bitfinex-derivatives/quotes_BTCF0:USTF0_20260111
["timestamp","ask_amount","ask_price","bid_price","bid_amount"]
[1768162799108,0.09404,90492.0,90475.0,0.10337095]
[1768162799297,0.011066,90491.0,90475.0,0.10337095]
[1768162799497,0.011066,90491.0,90475.0,0.06830295]
[1768162800105,0.09404,90492.0,90479.0,0.011067]
[1768162800609,0.09404,90492.0,90480.0,0.011067]
[1768162801208,0.09404,90492.0,90477.0,0.011067]
[1768162801412,0.011066,90491.0,90477.0,0.011067]
[1768162802007,0.09404,90492.0,90475.0,0.06830295]
[1768162802208,0.09404,90492.0,90475.0,0.07937095]
[1768162802209,0.011066,90489.0,90475.0,0.07937095]
[1768162802601,0.09404,90492.0,90478.0,0.011067]
[1768162802801,0.011066,90488.0,90475.0,0.06830295]
[1768162803506,0.011066,90486.0,90472.0,0.11327633]
[1768162803810,0.011066,90486.0,90472.0,0.20390577]
[1768162804205,0.011066,90489.0,90475.0,0.011068]
[1768162805008,0.011066,90489.0,90473.0,0.09831373]
[1768162806013,0.011066,90489.0,90473.0,0.10938173]
[1768162806404,0.011066,90489.0,90473.0,0.08838173]
[1768162807210,0.011066,90489.0,90475.0,0.011068]
[1768162808317,0.011066,90491.0,90475.0,0.011068]
[1768162808610,0.011066,90491.0,90476.0,0.09831373]
[1768162809011,0.011066,90488.0,90476.0,0.09831373]
[1768162809614,0.011066,90491.0,90476.0,0.11843257]
[1768162809815,0.011066,90492.0,90476.0,0.11843257]
[1768162810015,0.105106,90492.0,90476.0,0.11843257]
[1768162810209,0.105106,90492.0,90476.0,0.10736457]
[1768162810713,0.011066,90491.0,90476.0,0.10736457]
[1768162811904,0.09404,90492.0,90476.0,0.11843257]
[1768162812106,0.09404,90493.0,90476.0,0.11843257]
[1768162812609,0.011065,90495.0,90476.0,0.11843257]
[1768162812811,0.09404,90494.0,90479.0,0.0976248]
[1768162813520,0.011066,90493.0,90479.0,0.0766248]
[1768162814215,0.09404,90494.0,90480.0,0.011067]
[1768162814611,0.09404,90494.0,90479.0,0.0766248]
[1768162815918,0.105105,90494.0,90479.0,0.0876918]
[1768162816315,0.011065,90494.0,90479.0,0.0876918]
[1768162816520,0.09404,90493.0,90479.0,0.0876918]
[1768162816910,0.011065,90494.0,90479.0,0.0876918]
[1768162817111,0.011066,90492.0,90479.0,0.0876918]
[1768162817311,0.09404,90493.0,90480.0,0.011067]
[1768162819612,0.09404,90493.0,90479.0,0.0766248]
[1768162820125,0.09404,90493.0,90480.0,0.011067]
[1768162820325,0.011066,90494.0,90480.0,0.011067]
[1768162820524,0.09404,90493.0,90479.0,0.0766248]
[1768162820727,0.09404,90493.0,90479.0,0.0646248]
[1768162821527,0.09318768,90497.0,90479.0,0.0646248]
[1768162821721,0.1229159,90496.0,90479.0,0.0646248]
[1768162821915,0.011066,90492.0,90479.0,0.0646248]
[1768162822118,0.20196127,90496.0,90476.0,0.00905084]
[1768162822317,0.02887588,90495.0,90476.0,0.00905084]
[1768162822618,0.20196127,90496.0,90476.0,0.00905084]
[1768162822819,0.02887593,90495.0,90476.0,0.00905084]
[1768162823019,0.20196127,90496.0,90476.0,0.00905084]
[1768162823219,0.02887595,90495.0,90476.0,0.00905084]
[1768162823419,0.011066,90491.0,90476.0,0.02011884]
[1768162823722,0.10792127,90495.0,90476.0,0.02011884]
[1768162823922,0.011066,90491.0,90478.0,0.011067]
[1768162826030,0.11898727,90494.0,90475.0,0.0976248]
[1768162827035,0.011066,90490.0,90475.0,0.0976248]
[1768162827330,0.011066,90490.0,90475.0,0.1086928]
[1768162827529,0.10792127,90494.0,90475.0,0.0976248]
[1768162827732,0.09404,90493.0,90475.0,0.0856918]
[1768162828228,0.00956939,90494.0,90473.0,0.00905084]
[1768162828432,0.09404,90493.0,90479.0,0.011067]
[1768162828630,0.09404,90493.0,90480.0,0.011067]
[1768162829232,0.09404,90493.0,90477.0,0.011067]
[1768162829934,0.09835188,90510.0,90489.0,0.0976248]
[1768162830137,0.12291488,90504.0,90486.0,0.00905084]
[1768162830327,0.02887488,90503.0,90486.0,0.00905084]
[1768162830526,0.02887488,90502.0,90486.0,0.00905084]
[1768162830724,0.02887488,90502.0,90484.0,0.1086918]
[1768162830725,0.19239188,90504.0,90484.0,0.1086918]
[1768162830934,0.02886795,90503.0,90484.0,0.1086918]
[1768162831231,0.20196127,90504.0,90484.0,0.1086918]
[1768162831232,0.02886795,90502.0,90484.0,0.1086918]
[1768162831432,0.011065,90501.0,90484.0,0.1086918]
[1768162831633,0.20196127,90504.0,90484.0,0.1086918]
[1768162831835,0.02885458,90503.0,90490.0,0.15267683]
[1768162832032,0.105104,90504.0,90491.0,0.0976248]
[1768162832225,0.105104,90504.0,90490.0,0.15267683]
[1768162832537,0.105104,90504.0,90488.0,0.011066]
[1768162833237,0.011064,90502.0,90488.0,0.011066]
[1768162834940,0.011064,90504.0,90487.0,0.0776908]
[1768162835140,0.105104,90504.0,90487.0,0.0776908]
[1768162835340,0.105104,90504.0,90490.0,0.011066]
[1768162836631,0.011064,90507.0,90493.0,0.011065]
[1768162836828,0.01658859,90505.0,90487.0,0.0776908]
[1768162837033,0.01658859,90505.0,90490.0,0.011066]
[1768162838538,0.011064,90503.0,90487.0,0.0887568]
[1768162839936,0.00552459,90505.0,90491.0,0.10293935]
[1768162840136,0.00552459,90505.0,90495.0,0.09388329]
[1768162840436,0.00552459,90505.0,90495.0,0.10293935]
[1768162840638,0.011064,90507.0,90497.0,0.09388329]
[1768162840834,0.105103,90512.0,90497.0,0.09388329]
[1768162841235,0.011063,90510.0,90497.0,0.09388329]
[1768162841944,0.011063,90510.0,90497.0,0.08188329]
[1768162842329,0.09404,90512.0,90497.0,0.08188329]
[1768162842534,0.09404,90512.0,90501.0,0.00905606]
[1768162842831,0.09404,90518.0,90503.0,0.011064]
[1768162843145,0.09404,90518.0,90505.0,0.011064]
[1768162843534,0.09404,90518.0,90502.0,0.011064]
[1768162843729,0.09868309,90523.0,90501.0,0.00905606]
[1768162843730,0.105102,90523.0,90506.0,0.011064]
[1768162843935,0.011062,90521.0,90507.0,0.10293935]
[1768162844136,0.011063,90518.0,90507.0,0.09388329]
[1768162844440,0.011062,90522.0,90507.0,0.09388329]
[1768162844647,0.011063,90516.0,90503.0,0.09388329]
[1768162844945,0.16373983,90513.0,90497.0,0.105105]
[1768162845145,0.011063,90511.0,90497.0,0.09404]
[1768162845443,0.011063,90511.0,90497.0,0.18792329]
[1768162845643,0.011063,90514.0,90498.0,0.09388329]
[1768162845845,0.011063,90514.0,90498.0,0.10494829]
[1768162846040,0.15267683,90520.0,90500.0,0.09388329]
[1768162846241,0.011063,90512.0,90500.0,0.09388329]
[1768162847440,0.15267683,90520.0,90500.0,0.10293935]
[1768162848041,0.011063,90516.0,90502.0,0.10494729]
[1768162848340,0.011062,90522.0,90506.0,0.11400335]
[1768162848541,0.011062,90525.0,90511.0,0.09388329]
[1768162848747,0.09404,90524.0,90511.0,0.09388329]
[1768162849144,0.09404,90524.0,90511.0,0.06688329]
[1768162849542,0.011062,90526.0,90512.0,0.011063]
[1768162849745,0.09404,90526.0,90511.0,0.00905606]
[1768162849943,0.011062,90521.0,90511.0,0.00905606]
[1768162850450,0.09404,90526.0,90511.0,0.00905606]
[1768162850652,0.011062,90523.0,90511.0,0.00905606]
[1768162850955,0.011062,90521.0,90511.0,0.00905606]
[1768162851450,0.011062,90519.0,90511.0,0.00905606]
[1768162851754,0.09404,90526.0,90511.0,0.00905606]
[1768162852152,0.011063,90518.0,90511.0,0.00905606]
[1768162852747,0.011062,90521.0,90511.0,0.00905606]
[1768162852947,0.09404,90526.0,90511.0,0.00905606]
[1768162853957,0.011062,90520.0,90511.0,0.00905606]
[1768162854557,0.011062,90521.0,90513.0,0.09388329]
[1768162856050,0.011062,90521.0,90513.0,0.06288329]
[1768162856455,0.09868309,90540.0,90519.0,0.02011806]
[1768162856651,0.09868309,90536.0,90516.0,0.011063]
[1768162857057,0.011061,90532.0,90513.0,0.00905606]
[1768162857263,0.09868309,90536.0,90513.0,0.00905606]
[1768162857457,0.011062,90525.0,90514.0,0.00905606]
[1768162858258,0.011062,90525.0,90514.0,0.10293935]
[1768162858557,0.011062,90526.0,90514.0,0.00905606]
[1768162858755,0.011062,90526.0,90514.0,0.10293935]
[1768162860059,0.011062,90526.0,90515.0,0.10293935]
[1768162860368,0.011061,90529.0,90516.0,0.10293935]
[1768162860551,0.15267683,90530.0,90516.0,0.10293935]
[1768162860863,0.011061,90532.0,90516.0,0.00905606]
[1768162861065,0.011061,90532.0,90510.0,0.09404]
[1768162861066,0.011063,90517.0,90510.0,0.09404]
[1768162861556,0.011063,90516.0,90510.0,0.09404]
[1768162861760,0.011063,90514.0,90510.0,0.09404]
[1768162861962,0.10855488,90511.0,90497.0,0.08683807]
[1768162862165,0.10855488,90511.0,90492.0,0.105066]
[1768162862460,0.011064,90506.0,90493.0,0.09388329]
[1768162862967,0.011064,90509.0,90493.0,0.09388329]
[1768162863264,0.09868309,90519.0,90500.0,0.09388329]
[1768162863453,0.094,90518.0,90500.0,0.09388329]
[1768162864158,0.094,90518.0,90500.0,0.10494829]
[1768162864356,0.094,90518.0,90501.0,0.00952996]
[1768162864554,0.094,90518.0,90502.0,0.09984516]
[1768162864958,0.094,90517.0,90503.0,0.11090916]
[1768162865966,0.094,90518.0,90507.0,0.11090916]
[1768162866654,0.011062,90524.0,90507.0,0.11090916]
[1768162866855,0.011062,90522.0,90507.0,0.09984516]
[1768162867251,0.09404,90521.0,90507.0,0.09984516]
[1768162867853,0.011062,90522.0,90507.0,0.09984516]
[1768162868063,0.09404,90521.0,90507.0,0.09984516]
[1768162868264,0.011062,90522.0,90507.0,0.09984516]
[1768162868465,0.09404,90521.0,90507.0,0.09984516]
[1768162868967,0.11952359,90526.0,90507.0,0.11090916]
[1768162869266,0.09404,90525.0,90507.0,0.11090916]
[1768162869963,0.11952359,90526.0,90507.0,0.11090916]
[1768162870167,0.011061,90527.0,90513.0,0.09968853]
[1768162870358,0.09404,90526.0,90513.0,0.09968853]
[1768162870758,0.09404,90526.0,90511.0,0.011063]
[1768162870963,0.011061,90527.0,90511.0,0.011063]
[1768162871159,0.09404,90526.0,90513.0,0.011063]
[1768162871562,0.09404,90525.0,90513.0,0.011063]
[1768162871864,0.03296863,90530.0,90515.0,0.011063]
[1768162872057,0.09404,90529.0,90515.0,0.011063]
[1768162872457,0.03296863,90530.0,90515.0,0.011063]
[1768162872653,0.09404,90529.0,90515.0,0.011063]
[1768162873269,0.04213098,90530.0,90509.0,0.09968853]
[1768162873470,0.00916235,90530.0,90516.0,0.011063]
[1768162873767,0.09404,90532.0,90521.0,0.011062]
[1768162873967,0.02022235,90535.0,90520.0,0.15267683]
[1768162874271,0.09404,90534.0,90528.0,0.011061]
[1768162874772,0.00916235,90541.0,90528.0,0.011061]
[1768162875071,0.10909419,90544.0,90528.0,0.011061]
[1768162875072,0.09404,90540.0,90528.0,0.011061]
[1768162875266,0.09404,90540.0,90524.0,0.09968853]
[1768162875467,0.09404,90540.0,90525.0,0.011062]
[1768162875770,0.09404,90540.0,90524.0,0.09968853]
[1768162876272,0.00916235,90543.0,90524.0,0.09968853]
[1768162876456,0.094,90542.0,90524.0,0.09968853]
[1768162876867,0.094,90541.0,90529.0,0.011061]
[1768162877454,0.094,90541.0,90526.0,0.11074953]
[1768162878356,0.094,90541.0,90526.0,0.09968853]
[1768162878357,0.10506,90541.0,90526.0,0.09968853]
[1768162878873,0.01106,90539.0,90526.0,0.09968853]
[1768162879282,0.094,90541.0,90526.0,0.09968853]
[1768162879469,0.094,90541.0,90531.0,0.011061]
[1768162879868,0.011059,90546.0,90531.0,0.011061]
[1768162880066,0.094,90545.0,90530.0,0.15267683]
[1768162880267,0.094,90545.0,90530.0,0.14067683]
[1768162880475,0.011059,90546.0,90530.0,0.14067683]
[1768162880864,0.094,90545.0,90531.0,0.09968853]
[1768162881064,0.094,90544.0,90531.0,0.09968853]
[1768162881265,0.094,90544.0,90534.0,0.011061]
[1768162881566,0.094,90548.0,90534.0,0.011061]
[1768162881762,0.094,90548.0,90531.0,0.11074953]
[1768162881966,0.105059,90548.0,90531.0,0.11074953]
[1768162882476,0.105059,90548.0,90532.0,0.11074953]
[1768162882979,0.011059,90551.0,90532.0,0.11074953]
[1768162883277,0.105059,90551.0,90532.0,0.11074953]
[1768162883977,0.105059,90551.0,90534.0,0.01106]
[1768162884968,0.105059,90551.0,90534.0,0.11074853]
[1768162885168,0.011059,90549.0,90534.0,0.09968853]
[1768162885372,0.011059,90547.0,90534.0,0.09968853]
[1768162885771,0.094,90551.0,90534.0,0.09968853]
[1768162885967,0.094,90551.0,90534.0,0.10892864]
[1768162886572,0.10909319,90557.0,90540.0,0.16373683]
[1768162886782,0.105058,90558.0,90543.0,0.011059]
[1768162887472,0.094,90558.0,90541.0,0.08274753]
[1768162887667,0.11825454,90560.0,90541.0,0.08274753]
[1768162887869,0.094,90559.0,90541.0,0.08274753]
[1768162888064,0.011058,90558.0,90543.0,0.011059]
[1768162888470,0.011058,90558.0,90541.0,0.08274753]
[1768162888975,0.10719754,90554.0,90532.0,0.00924011]
[1768162889168,0.00916235,90553.0,90535.0,0.01106]
[1768162889364,0.00916235,90553.0,90537.0,0.01106]
[1768162889570,0.00916235,90553.0,90537.0,0.11074853]
[1768162890278,0.011058,90556.0,90541.0,0.01106]
[1768162890482,0.00916235,90555.0,90536.0,0.02030011]
[1768162890681,0.00916235,90555.0,90540.0,0.15267683]
[1768162890867,0.011059,90551.0,90536.0,0.10892864]
[1768162891272,0.00916235,90555.0,90536.0,0.10892864]
[1768162891776,0.011059,90551.0,90537.0,0.01106]
[1768162891979,0.011058,90554.0,90540.0,0.15267683]
[1768162892582,0.011058,90554.0,90539.0,0.09968853]
[1768162892782,0.011058,90554.0,90540.0,0.15267683]
[1768162893081,0.011058,90552.0,90539.0,0.09968853]
[1768162893878,0.00916235,90555.0,90539.0,0.09968853]
[1768162894178,0.00916235,90555.0,90540.0,0.01106]
[1768162894381,0.00916235,90555.0,90539.0,0.09968853]
[1768162894581,0.00916235,90555.0,90539.0,0.07768853]
[1768162895077,0.011058,90553.0,90539.0,0.08874853]
[1768162896879,0.00916235,90555.0,90540.0,0.01106]
[1768162898490,0.00916235,90555.0,90539.0,0.07768853]
[1768162898491,0.011058,90558.0,90542.0,0.10449288]
[1768162899586,0.094,90559.0,90542.0,0.09343288]
[1768162899776,0.094,90559.0,90536.0,0.00924011]
[1768162899777,0.10221295,90555.0,90536.0,0.00924011]
[1768162899980,0.011058,90552.0,90536.0,0.00924011]
[1768162900287,0.011059,90551.0,90535.0,0.01106]
[1768162900582,0.011059,90551.0,90535.0,0.10449288]
[1768162900887,0.011059,90551.0,90537.0,0.01106]
[1768162901474,0.094,90559.0,90539.0,0.10449288]
[1768162901677,0.10221295,90558.0,90539.0,0.01106]
[1768162902392,0.011058,90555.0,90539.0,0.01106]
[1768162904989,0.011056,90575.0,90534.0,0.094]
[1768162904990,0.09315924,90579.0,90559.0,0.09343288]
[1768162905180,0.00905371,90584.0,90568.0,0.011056]
[1768162905387,0.00905371,90584.0,90564.0,0.09343288]
[1768162905581,0.094,90583.0,90571.0,0.011056]
[1768162905778,0.00905371,90584.0,90574.0,0.011056]
[1768162905986,0.094,90583.0,90573.0,0.011056]
[1768162906191,0.094,90583.0,90564.0,0.09343288]
[1768162906495,0.094,90583.0,90567.0,0.011056]
[1768162906796,0.094,90582.0,90567.0,0.011056]
[1768162906995,0.00905371,90581.0,90562.0,0.09865897]
[1768162907296,0.10221295,90572.0,90563.0,0.011057]
[1768162907689,0.00905371,90572.0,90563.0,0.011057]
[1768162908485,0.09315924,90575.0,90563.0,0.011057]
[1768162908683,0.09315924,90575.0,90556.0,0.09343288]
[1768162909499,0.09315924,90575.0,90561.0,0.011057]
[1768162910595,0.10221295,90574.0,90556.0,0.08801572]
[1768162910784,0.10221295,90573.0,90555.0,0.011058]
[1768162910989,0.10421524,90572.0,90555.0,0.011058]
[1768162912490,0.09315924,90572.0,90554.0,0.02074952]
[1768162912691,0.00905371,90573.0,90559.0,0.011057]
[1768162915497,0.00905371,90573.0,90560.0,0.011057]
[1768162916501,0.00905371,90573.0,90557.0,0.011058]
[1768162916903,0.00905371,90573.0,90556.0,0.09343288]
[1768162917101,0.011057,90563.0,90543.0,0.09343288]
[1768162917298,0.10221295,90563.0,90544.0,0.011059]
[1768162918985,0.10221295,90563.0,90544.0,0.09822846]
[1768162919201,0.10221295,90563.0,90544.0,0.19166134]
[1768162919686,0.10221295,90563.0,90545.0,0.09343288]
[1768162921400,0.10221295,90560.0,90542.0,0.09396]
[1768162921598,0.10221295,90558.0,90542.0,0.09396]
[1768162922397,0.10221295,90558.0,90543.0,0.011059]
[1768162923199,0.00905371,90558.0,90543.0,0.011059]
[1768162923498,0.00905371,90558.0,90545.0,0.011059]
[1768162923901,0.09315924,90562.0,90543.0,0.09974404]
[1768162924100,0.09315924,90562.0,90544.0,0.011059]
[1768162924805,0.09315924,90562.0,90547.0,0.011059]
[1768162925296,0.00961533,90563.0,90544.0,0.011059]
[1768162925801,0.00961533,90563.0,90546.0,0.011059]
[1768162926503,0.09396,90566.0,90546.0,0.09974404]
[1768162926696,0.09396,90566.0,90546.0,0.10875091]
[1768162927104,0.09396,90565.0,90546.0,0.10875091]
[1768162927495,0.09396,90565.0,90549.0,0.011059]
[1768162929996,0.09976616,90561.0,90547.0,0.011059]
[1768162930204,0.00962376,90561.0,90547.0,0.011059]
[1768162930406,0.011057,90564.0,90547.0,0.011059]
[1768162931005,0.1841024,90565.0,90549.0,0.011059]
[1768162931304,0.1951594,90565.0,90549.0,0.011059]
[1768162932804,0.20478316,90565.0,90549.0,0.011059]
[1768162932995,0.19372616,90565.0,90548.0,0.011059]
[1768162934299,0.19372616,90565.0,90550.0,0.011059]
[1768162935202,0.09976616,90565.0,90550.0,0.011059]
[1768162935401,0.09396,90564.0,90550.0,0.011059]
[1768162936203,0.00962376,90583.0,90561.0,0.09030537]
[1768162936402,0.00962376,90583.0,90569.0,0.011056]
[1768162936810,0.09976616,90583.0,90569.0,0.011056]
[1768162937710,0.09976616,90583.0,90571.0,0.011056]
[1768162938212,0.09396,90582.0,90571.0,0.011056]
[1768162938911,0.09396,90582.0,90569.0,0.011056]
[1768162939604,0.09396,90582.0,90571.0,0.011056]
[1768162940414,0.09976616,90583.0,90571.0,0.011056]
[1768162940602,0.09396,90582.0,90563.0,0.09998672]
[1768162940807,0.09396,90582.0,90569.0,0.011056]
[1768162941002,0.09396,90582.0,90563.0,0.09998672]
[1768162941208,0.09396,90582.0,90573.0,0.011056]
[1768162942517,0.00962376,90583.0,90573.0,0.011056]
[1768162942717,0.00962376,90583.0,90570.0,0.011056]
[1768162944318,0.09976616,90583.0,90568.0,0.011056]
[1768162944817,0.09976616,90583.0,90567.0,0.011056]
[1768162945317,0.09976616,90583.0,90569.0,0.011056]
[1768162945517,0.09976616,90583.0,90564.0,0.09030537]
[1768162945722,0.09976616,90580.0,90569.0,0.011056]
[1768162946619,0.09976616,90580.0,90565.0,0.011057]
[1768162946825,0.09976616,90580.0,90567.0,0.011057]
[1768162948421,0.09976616,90580.0,90569.0,0.011056]
[1768162950217,0.00962376,90580.0,90571.0,0.011056]
[1768162951623,0.1841024,90584.0,90572.0,0.011056]
[1768162951916,0.1841024,90584.0,90573.0,0.011056]
[1768162952121,0.09396,90584.0,90573.0,0.011056]
[1768162952723,0.09396,90584.0,90575.0,0.011056]
[1768162952920,0.09396,90590.0,90573.0,0.10136137]
[1768162953221,0.09396,90590.0,90580.0,0.011055]
[1768162953621,0.09396,90590.0,90573.0,0.08336037]
[1768162954021,0.09396,90590.0,90579.0,0.011055]
[1768162955121,0.09396,90590.0,90581.0,0.011055]
[1768162955519,0.09396,90590.0,90578.0,0.011055]
[1768162955721,0.09396,90590.0,90580.0,0.011055]
[1768162956629,0.09396,90590.0,90577.0,0.011055]
[1768162956921,0.09922236,90594.0,90580.0,0.1523686]
[1768162957126,0.09922236,90594.0,90575.0,0.09766227]
[1768162957730,0.09922236,90594.0,90581.0,0.011055]
[1768162958831,0.10349207,90598.0,90584.0,0.011054]
[1768162959024,0.09396,90597.0,90589.0,0.011054]
[1768162959329,0.09396,90597.0,90586.0,0.011054]
[1768162959719,0.00907996,90598.0,90588.0,0.011054]
[1768162959931,0.00907996,90598.0,90585.0,0.011054]
[1768162960332,0.09396,90601.0,90585.0,0.011054]
[1768162960732,0.09441211,90602.0,90585.0,0.011054]
[1768162961120,0.10349207,90602.0,90585.0,0.011054]
[1768162961931,0.10349207,90602.0,90588.0,0.011054]
[1768162962835,0.011051,90612.0,90595.0,0.011053]
[1768162963138,0.011052,90607.0,90589.0,0.09766227]
[1768162963435,0.10349207,90606.0,90588.0,0.011054]
[1768162963835,0.10349207,90605.0,90588.0,0.011054]
[1768162964335,0.10349207,90601.0,90587.0,0.09396]
[1768162964836,0.10349207,90601.0,90588.0,0.011054]
[1768162965635,0.1634196,90610.0,90592.0,0.011053]
[1768162965824,0.1634196,90610.0,90589.0,0.011054]
[1768162965825,0.1523686,90610.0,90589.0,0.011054]
[1768162966226,0.1523686,90610.0,90587.0,0.09396]
[1768162966428,0.011052,90605.0,90588.0,0.011054]
[1768162967338,0.011052,90608.0,90590.0,0.011054]
[1768162967538,0.011052,90608.0,90592.0,0.011053]
[1768162967739,0.09441211,90607.0,90587.0,0.087013]
[1768162967931,0.09441211,90607.0,90590.0,0.1523686]
[1768162968127,0.09441211,90607.0,90587.0,0.087013]
[1768162968541,0.09441211,90607.0,90597.0,0.011053]
[1768162968729,0.09441211,90611.0,90599.0,0.011053]
[1768162969229,0.10349207,90611.0,90599.0,0.011053]
[1768162969536,0.09441211,90609.0,90599.0,0.011053]
[1768162969737,0.10349207,90609.0,90594.0,0.011053]
[1768162970128,0.09441211,90607.0,90594.0,0.011053]
[1768162970329,0.09441211,90607.0,90590.0,0.1523686]
[1768162970529,0.09441211,90607.0,90598.0,0.011053]
[1768162971133,0.09441211,90607.0,90595.0,0.011053]
[1768162971736,0.09441211,90607.0,90590.0,0.1523686]
[1768162972539,0.09441211,90607.0,90598.0,0.011053]
[1768162973038,0.09441211,90607.0,90595.0,0.011053]
[1768162973340,0.09441211,90607.0,90597.0,0.011053]
[1768162973935,0.09441211,90607.0,90599.0,0.011053]
[1768162974338,0.011047,90644.0,90607.0,0.011052]
[1768162974535,0.1523686,90620.0,90611.0,0.011051]
[1768162974842,0.09392,90624.0,90611.0,0.011051]
[1768162975140,0.09392,90624.0,90610.0,0.011051]
[1768162975329,0.011049,90627.0,90610.0,0.011051]
[1768162975528,0.09392,90623.0,90610.0,0.011051]
[1768162976235,0.09441211,90622.0,90610.0,0.011051]
[1768162976430,0.09441211,90622.0,90612.0,0.011051]
[1768162976846,0.09441211,90622.0,90606.0,0.01097053]
[1768162977037,0.09441211,90622.0,90602.0,0.09766227]
[1768162977241,0.09441211,90622.0,90602.0,0.10867822]
[1768162978234,0.09441211,90622.0,90610.0,0.011051]
[1768162978635,0.09392,90621.0,90610.0,0.011051]
[1768162978835,0.09441211,90620.0,90612.0,0.011051]
[1768162979948,0.09441211,90620.0,90602.0,0.10172922]
[1768162980149,0.09441211,90620.0,90612.0,0.011051]
[1768162980334,0.09441211,90620.0,90603.0,0.011052]
[1768162980538,0.09441211,90620.0,90603.0,0.02066301]
[1768162980940,0.09392,90621.0,90604.0,0.00961101]
[1768162981350,2.7e-07,90625.0,90620.0,0.01105]
[1768162981643,0.09441211,90637.0,90620.0,0.02066101]
[1768162981847,0.09441211,90637.0,90615.0,0.09766227]
[1768162982150,0.10349207,90635.0,90618.0,0.01105]
[1768162984550,0.10349207,90635.0,90615.0,0.00961101]
[1768162984551,0.09441211,90635.0,90621.0,0.01105]
[1768162986045,0.09459201,90639.0,90625.0,0.1523686]
[1768162986241,0.09392,90638.0,90620.0,0.16214979]
[1768162986439,0.09392,90638.0,90621.0,0.00978119]
[1768162986642,0.09459201,90639.0,90628.0,0.011049]
[1768162986848,0.09392,90640.0,90628.0,0.011049]
[1768162987042,0.09392,90640.0,90622.0,0.00578119]
[1768162987248,0.09459201,90639.0,90622.0,0.00578119]
[1768162987750,0.10371098,90635.0,90618.0,0.09392]
[1768162987947,0.09459201,90633.0,90618.0,0.09392]
[1768162988645,0.10564101,90633.0,90618.0,0.09392]
[1768162988843,0.11475998,90633.0,90618.0,0.09392]
[1768162991448,0.011049,90631.0,90618.0,0.09392]
[1768162991653,0.10371098,90633.0,90618.0,0.10497]
[1768162992746,0.10371098,90633.0,90620.0,0.01105]
[1768162992946,0.011049,90632.0,90618.0,0.09392]
[1768162993344,0.011049,90632.0,90619.0,0.01105]
[1768162993543,0.10371098,90633.0,90619.0,0.01105]
[1768162994148,0.10371098,90633.0,90618.0,0.09197]
[1768162994356,0.10945583,90632.0,90618.0,0.10302]
[1768162994548,0.09840683,90632.0,90620.0,0.01105]
[1768162994944,0.09840683,90632.0,90618.0,0.09197]
[1768162995755,0.011048,90635.0,90618.0,0.09197]
[1768162995948,0.011049,90633.0,90618.0,0.09197]
[1768162996253,0.011049,90633.0,90620.0,0.1523686]
[1768162996955,0.011049,90631.0,90620.0,0.1523686]
[1768162999852,0.011049,90629.0,90620.0,0.1523686]
[1768163000658,0.09840683,90635.0,90618.0,0.09197]
[1768163000954,0.011049,90628.0,90620.0,0.1523686]
[1768163001155,0.011049,90628.0,90618.0,0.09197]
[1768163001353,0.011049,90628.0,90618.0,0.07397]
[1768163001956,0.09840683,90635.0,90618.0,0.07397]
[1768163002351,0.011049,90630.0,90618.0,0.07397]
[1768163003956,0.011049,90628.0,90618.0,0.07397]
[1768163004760,0.011049,90626.0,90618.0,0.07397]
[1768163005962,0.01105,90618.0,90605.0,0.01507986]
[1768163006461,0.01105,90618.0,90605.0,0.02613186]
[1768163007355,0.01105,90620.0,90607.0,0.011052]
[1768163008565,0.10945683,90623.0,90607.0,0.011052]
[1768163008757,0.00920662,90626.0,90605.0,0.10643246]
[1768163008758,0.01105,90621.0,90605.0,0.10643246]
[1768163009954,0.01105,90621.0,90606.0,0.11196597]
[1768163011061,0.01105,90621.0,90607.0,0.00956137]
[1768163013465,0.01105,90624.0,90607.0,0.00956137]
[1768163013853,0.01105,90624.0,90608.0,0.011051]
[1768163015067,0.01105,90624.0,90609.0,0.011051]
[1768163016767,0.09378548,90621.0,90605.0,0.01657049]
[1768163016953,0.09378548,90616.0,90605.0,0.00551849]
[1768163017154,0.09378548,90616.0,90603.0,0.104972]
[1768163017761,0.09378548,90616.0,90605.0,0.011052]
[1768163017960,0.10483548,90620.0,90605.0,0.011052]
[1768163018957,0.01105,90618.0,90605.0,0.011052]
[1768163019169,0.10483548,90620.0,90606.0,0.011052]
[1768163021966,0.01105,90618.0,90604.0,0.011052]
[1768163024273,0.01105,90618.0,90603.0,0.09392]
[1768163024474,0.011051,90616.0,90603.0,0.09392]
[1768163024869,0.01105,90619.0,90603.0,0.09392]
[1768163025076,0.10483548,90619.0,90603.0,0.09392]
[1768163025874,0.10483548,90619.0,90604.0,0.011052]
[1768163026076,0.10483548,90619.0,90605.0,0.011052]
[1768163026878,0.01105,90617.0,90603.0,0.104972]
[1768163027476,0.011051,90615.0,90603.0,0.09392]
[1768163027675,0.09378548,90619.0,90603.0,0.09392]
[1768163027876,0.011051,90617.0,90603.0,0.104972]
[1768163031481,0.011051,90617.0,90603.0,0.09392]
[1768163032784,0.011051,90616.0,90603.0,0.09392]
[1768163033484,0.011051,90616.0,90598.0,0.08827359]
[1768163033485,0.09378548,90615.0,90598.0,0.08827359]
[1768163033685,0.011051,90609.0,90596.0,0.09392]
[1768163033876,0.011051,90611.0,90596.0,0.09392]
[1768163034279,0.011051,90611.0,90597.0,0.011053]
[1768163034876,0.011051,90614.0,90597.0,0.01121307]
[1768163035083,0.011051,90614.0,90601.0,0.011052]
[1768163035388,0.011051,90614.0,90598.0,0.11456566]
[1768163035786,0.011051,90612.0,90598.0,0.11456566]
[1768163036184,0.09392,90618.0,90601.0,0.10351266]
[1768163037489,0.011051,90617.0,90602.0,0.011052]
[1768163037881,0.011051,90616.0,90602.0,0.011052]
[1768163038586,0.10497,90618.0,90604.0,0.011052]
[1768163038789,0.09392,90618.0,90601.0,0.10351266]
[1768163038985,0.09392,90618.0,90606.0,0.011052]
[1768163039290,0.09392,90618.0,90607.0,0.011052]
[1768163039490,0.09392,90618.0,90604.0,0.10351266]
[1768163040078,0.10483648,90614.0,90598.0,0.08694955]
[1768163040281,0.10483648,90614.0,90596.0,0.11456566]
[1768163040496,0.011051,90612.0,90596.0,0.10351266]
[1768163040678,0.09378548,90614.0,90596.0,0.00926086]